Workbook

Sheet Datos
A1: INTRODUCCIÓN DE DATOS
A3: PRESUPUESTO Nº:
A4: SUMINISTRO | D4: CONTADOR
A5: CALLE
A6: NÚMERO: | C6: POBLACIÓN
A7: COD.POSTAL
A8: INSTALADOR
A9: PARTIDAS DEL PRESUPUESTO
A10: Importe de Fontanería Exterior | F10: 0
A11: Importe de Albañilería y Varios | F11: 0
A12: Importe de nuevos Grupos de Presión | F12: 0
A13: Importe de adaptación o ampliación de Grupos existentes | F13: 0
A14: Importe de Proyecto Técnico y Dirección | F14: 0
A15: Importe de Aislamiento Térmico de Montantes | F15: 0
A16: Importe de Estudio, Medidas y Elementos de Seguridad | F16: 0
A17: Porcentaje de IVA vigente (10%) | F17: =SUM(F10:F16)*0.1 -> 0
A18: TOTAL PRESUPUESTO (IVA INCLUIDO) | F18: =SUM(F10:F17) -> 0
A19: Importe de ingreso en efectivo de la comunidad
A20: Número de edificios diferentes con toma de comunidad | F20: 0 | G20: =IF(F21<F20,"F20 DEBE SER >= F19","") -> 
A21: Número total de tomas de comunidad a contratar | F21: 0
A22: Número total de viviendas y locales a individualizar | F22: 0 | G22: =IF(F23+F24<>F22,"¡ATENCIÓN! EL NUMERO TOTAL DE MONTANTES NO COINCIDE CON LA DISTRIBUCION POR PUNTOS DE ENTRADA","") -> 
A23: Con una sóla entrada de agua: | F23: 0
A24: Con más de una entrada de agua: | F24: 0
A25: Número de contadores de 13 mm. para viviendas o locales | F25: 0 | G25: =IF((F25+F26+F27)<>(F23+F24),"¡ATENCIÓN EL NÚMERO DE CONTADORES DEBE COINCIDIR CON EL NÚMERO DE MONTANTES","") -> 
A26: Número de contadores de 15 mm. para viviendas o locales | F26: 0
A27: Número de contadores de 20 mm. para viviendas o locales
A28: NUEVA/S ACOMETIDA/S NECESARIA/S
B29: Nº DE ACOMETIDAS | D29: Ø (MM)
D30: =+Tarifas!A28 -> 20
D31: =+Tarifas!A29 -> 25
B32: 0 | D32: =+Tarifas!A30 -> 30
B33: 0 | D33: =+Tarifas!A31 -> 40
D34: 50
D35: =+Tarifas!A33 -> 65
D36: =+Tarifas!A34 -> 80

Sheet Analisis
M2: Suministro nº | P2: =Datos!B4 -> 0
M3: Presupuesto nº | P3: =Datos!C3 -> 0
D5: Análisis de Subvención
A8: DIRECCIÓN DE LA FINCA PRESUPUESTADA
A10: Calle: | B10: =IF(Datos!B5<>"",Datos!B5,"") ->  | M10: Número: | O10: =IF(Datos!B6<>"",Datos!B6,"") -> 
A12: Población: | C12: =IF(Datos!D6<>"",Datos!D6,"") ->  | M12: Código Postal: | P12: =IF(Datos!B7<>"",Datos!B7,"") -> 
A15: DATOS DEL PRESUPUESTO
A17: INSTALADOR: | D17: =IF(Datos!B8<>"",Datos!B8,"") ->  | L17: Nº de viviendas y/o locales | Q17: =+Datos!F22 -> 0
A19: IMPORTE DEL PRESUPUESTO (10% IVA incluido).................................... | O19: =+Datos!F18 -> 0
A20: =IF(SUM(Datos!B30:C36)<=1,"IMPORTE DE LA NUEVA ACOMETIDA DE AGUA...................................................................","IMPORTE DE LAS NUEVAS ACOMETIDAS DE AGUA.......................................") -> IMPORTE DE LA NUEVA ACOMETIDA DE AGUA................................................................... | O20: =IF(+N102>0,N102,"") -> 
A21: IMPORTE CUOTAS DE CONTRATACIÓN Y FIANZAS.............................................. | O21: =+N82 -> 0
C22: TOTAL.............................................................................................................. | O22: =IF(O20="",O19+O21,O20+O19+O21) -> 0
A24: SUBVENCIÓN EMASESA............................................................................................ | O24: =-Analisis!N60 -> 0
A25: =IF(SUM(Datos!B30:C36)<=1,"BONIFICACIÓN ACOMETIDA.........................................................................................","BONIFICACIÓN ACOMETIDAS.................................................................................") -> BONIFICACIÓN ACOMETIDA......................................................................................... | O25: =IF(O20<>"",-O20,"") -> 
A26: BONIFICACIÓN EN CUOTAS DE CONTRATACIÓN Y FIANZAS............................ | O26: =-Analisis!N92 -> 0
C27: TOTAL AYUDAS EXTRAORDINARIAS PLAN CINCO........................................................................... | O27: =IF(O25="",O24+O26,O26+O24+O25) -> 0
C29: IMPORTE NETO............................................................................................ | O29: =+O22+O27 -> 0
A31: Análisis supuesto pago en efectivo:
G32: Distribución en función de los tipos de viviendas
G33: =IF(Datos!$F$25>0,Datos!F$25,"") ->  | H33: =IF(G33<>"","de 13 mm.","") ->  | J33: =IF(Datos!$F$26>0,Datos!F$26,"") ->  | K33: =IF(J33<>"","de 15 mm.","") ->  | M33: =IF(Datos!$F$27>0,Datos!F$27,"") ->  | N33: =IF(M33<>"","de 20 mm.","") ->  | P33: =IF(Datos!F21>=1,"Comunidad","") ->  | R33: =IF(Datos!F21>0,Datos!F21,"") -> 
A34: Importe neto por comunero................. | G34: =IF(Datos!F25>=1,($O$19-Datos!F19+$O$24)/Datos!$F$22,"") ->  | J34: =IF(Datos!F26>=1,($O$19-Datos!F19+$O$24)/Datos!$F$22,"") ->  | M34: =IF(Datos!F27>=1,($O$19-Datos!F19+$O$24)/Datos!$F$22,"") ->  | P34: =IF(Datos!F19>0,Datos!F19,"") -> 
A35: Cuota de Contratación (*)........................... | G35: =IF(Datos!F25>=1,Tarifas!K4,"") ->  | J35: =IF(Datos!F26>=1,Tarifas!K6,"") ->  | M35: =IF(Datos!F27>=1,Tarifas!K7,"") ->  | P35: =IF(AND(Datos!F20=Datos!F21,Datos!F20=1),"Bonificada",IF(AND(Datos!F20<Datos!F21,Datos!F20>1),CONCATENATE(TEXT(Datos!F20,0)," Bonificadas"),IF(AND(Datos!F20<Datos!F21,Datos!F20=1),CONCATENATE(TEXT(Datos!F20,0)," Bonificada"),IF(AND(Datos!F20=Datos!F21,Datos!F20>1),"Bonificadas",IF(Q85>0,Q85,""))))) -> 
A36: Fianza según tipo (*).................................... | G36: =IF(Datos!F25>=1,Tarifas!K16,"") ->  | J36: =IF(Datos!F26>=1,Tarifas!K18,"") ->  | M36: =IF(Datos!F27>=1,Tarifas!K19,"") ->  | P36: =IF(Datos!F21<1,"",Q88) -> 
A37: TOTAL EFECTIVO POR COMUNERO | G37: =IF(Datos!F25>0,+G36+G35+G34,"") ->  | J37: =IF(Datos!F26>0,+J36+J35+J34,"") ->  | M37: =IF(Datos!F27>0,+M36+M35+M34,"") ->  | P37: =IF(Datos!F21>=1,+Q85+Q88+Datos!F19,"") -> 
D40: =+Analisis!A105 -> 2017-06-14T07:19:16.890
A42: (*) Los precios de Cuotas de Contratación, Fianzas e importes de subvención son los previstos para el año 2017
A43: (*) Esta información es orientativa hasta su aprobación definitiva por EMASESA.
A47: DETALLE DE LA SUBVENCIÓN DE EMASESA
A49: Concepto | H49: Año 2017
A50: Subvención base | H50: 122
A51: Con grupo de presión | H51: 40
A52: Con más de un punto de entrada | H52: 60
A53: Con proyecto | H53: 3
H55: Unidades | K55: Importe | N55: Subvención
A56: Subvención base | H56: =+Datos!F22 -> 0 | K56: =+H50 -> 122 | N56: =+H56*K56 -> 0
A57: Con grupo de presión | H57: =IF(Datos!F12>0,Datos!F22,0) -> 0 | K57: =+H51 -> 40 | N57: =+H57*K57 -> 0
A58: Con más de un punto de entrada | H58: =IF(Datos!F24>0,Datos!F24,0) -> 0 | K58: =+H52 -> 60 | N58: =+H58*K58 -> 0
A59: Con proyecto | H59: =IF(Datos!F14>0,Datos!F22,0) -> 0 | K59: =+H53 -> 3 | N59: =+H59*K59 -> 0
A60: SUMA | N60: =SUM(N56:N59) -> 0
A61: Importe acometida | N61: =+N102 -> 0
A62: Importe Bonificación Contratación | N62: =+N92 -> 0
A63: TOTAL SUBVENCIÓN | N63: =SUM(N60:N62) -> 0
A66: Con la entrada en vigor de la nueva forma de facturación por habitantes, el Consejo de Administración
A67: de EMASESA, a propuesta de la Comisión para Sostenibilidad y Equilibrio, aprobó paralelamente
A68: adoptar una nueva medida, la cual ha sido debidamente recogida en la Ordenanza de
A69: Abastecimiento para 2017. Dicha medida es:
B71: 1. | C71: Eximir de la cuota de contratación a todos aquellos contratos que se generen como
C72: consecuencia del paso de contador general a individual (art. 12.2)
A76: DERECHOS COMPLETOS
A77: CONTRATACIÓN 13 MM. | H77: =+Datos!F25 -> 0 | K77: =Tarifas!F4 -> 127.891 | N77: =+H77*K77 -> 0
A78: CONTRATACIÓN 15 MM. | H78: =+Datos!F26 -> 0 | K78: =Tarifas!F6 -> 127.891 | N78: =+H78*K78 -> 0
A79: CONTRATACIÓN 20 MM. | H79: =+Datos!F27 -> 0 | K79: =Tarifas!F7 -> 180.046 | N79: =+H79*K79 -> 0
A80: C.C. COMUNIDAD | H80: =IF(Datos!F21>=1,Datos!F21,0) -> 0 | K80: =Tarifas!D5 -> 57.6 | N80: =+K80*H80 -> 0
A81: FIANZA COMUNIDAD | H81: =IF(Datos!F21>=1,Datos!F21,0) -> 0 | K81: =Tarifas!D17 -> 70.291 | N81: =+K81*H81 -> 0
A82: TOTAL | N82: =SUM(N77:N81) -> 0
N83: ,
A84: SUBVENCION CONTRATACIÓN Y FIANZA | Q84: Contratación Comunidad, más de una toma)
A85: C.C. COMUNIDAD | H85: =IF(Datos!F20>=1,Datos!F20,0) -> 0 | K85: =Tarifas!D4-Tarifas!K5 -> 57.6 | N85: =+K85*H85 -> 0 | Q85: 0
A86: C.C. DE 13 MM | H86: =Datos!F25 -> 0 | K86: =Tarifas!D4-Tarifas!K4 -> 57.6 | N86: =+K86*H86 -> 0 | Q86: 0
A87: C.C. DE 15 MM | H87: =Datos!F26 -> 0 | K87: =Tarifas!D6-Tarifas!K6 -> 57.6 | N87: =+K87*H87 -> 0 | Q87: 0
A88: FIANZA COMUNIDAD | H88: =IF(Datos!F20>=1,Datos!F20,0) -> 0 | K88: =Tarifas!D17-Tarifas!K17 -> 67.281 | N88: 0 | Q88: 3.01
A89: FIANZAS DE 13 MM. | H89: =IF(Datos!F25>=1,Datos!F25,0) -> 0 | K89: =Tarifas!D16-Tarifas!K16 -> 67.281 | N89: 0 | Q89: 3.01
A90: FIANZAS DE 15 MM. | H90: =IF(Datos!F26>=1,Datos!F26,0) -> 0 | K90: =Tarifas!D18-Tarifas!K18 -> 67.281 | N90: 0 | Q90: 3.01
A91: FIANZAS DE 20 MM. | H91: =IF(Datos!F27>=1,Datos!F27,0) -> 0 | K91: =Tarifas!D19-Tarifas!K19 -> 88.936 | N91: 0 | Q91: 3.01
A92: TOTAL | N92: =SUM(N85:P91) -> 0
A94: SUBVENCION ACOMETIDAS
A95: ACOMETIDAS DE 20 MM | H95: =+Datos!B30 -> 0 | K95: =+Tarifas!D28 -> 535.47 | N95: =+K95*H95 -> 0
A96: ACOMETIDAS DE 25 MM | H96: =+Datos!B31 -> 0 | K96: =+Tarifas!D29 -> 669.34 | N96: 0
A97: ACOMETIDAS DE 30 MM | H97: =+Datos!B32 -> 0 | K97: =+Tarifas!D30 -> 803.2 | N97: 0
A98: ACOMETIDAS DE 40 MM | H98: =+Datos!B33 -> 0 | K98: =+Tarifas!D31 -> 1070.93 | N98: 0
A99: ACOMETIDAS DE 50 MM | H99: =+Datos!B34 -> 0 | K99: =+Tarifas!D32 -> 1338.67 | N99: 0
A100: ACOMETIDAS DE 65 MM | H100: =+Datos!B35 -> 0 | K100: =+Tarifas!D33 -> 1740.27 | N100: 0
A101: ACOMETIDAS DE 80 MM | H101: =+Datos!B36 -> 0 | K101: =+Tarifas!D34 -> 2141.87 | N101: 0
A102: TOTAL | N102: =SUM(N95:N101) -> 0
A104: FECHA
A105: =+NOW() -> 2017-06-14T07:19:16.890

Sheet Tarifas
A1: CUOTAS DE CONTRATACIÓN
A2: EMASESA | F2: Derechos | H2: PLAN CINCO | L2: Derechos
A3: Calibre | B3: Importe | C3: IVA | D3: Total | F3: Completos | H3: Calibre | I3: Importe | J3: IVA | K3: Total | L3: Completos
A4: 13 | B4: 47.6 | C4: =ROUND(+B4*21%,2) -> 10 | D4: =+C4+B4 -> 57.6 | F4: =+D4+D16 -> 127.891 | H4: 13 | I4: 0 | J4: 0 | K4: 0 | L4: =+K4+K16 -> 3.01
A5: Comunidad | B5: 47.6 | C5: =ROUND(+B5*21%,2) -> 10 | D5: =+C5+B5 -> 57.6 | F5: =+D5+D17 -> 127.891 | H5: Comunidad | I5: 0 | J5: 0 | K5: 0 | L5: =+K5+K17 -> 3.01
A6: 15 | B6: 47.6 | C6: 10 | D6: 57.6 | F6: =+D6+D18 -> 127.891 | H6: 15 | I6: 0 | J6: 0 | K6: 0 | L6: 3.01
A7: 20 | B7: 72.81 | C7: 15.29 | D7: 88.1 | F7: 180.046 | H7: 20 | I7: 0 | J7: 0 | K7: 0 | L7: 3.01
A8: 25 | B8: 94.98 | C8: 19.95 | D8: 114.93 | F8: 268.051 | H8: 25 | I8: 0 | J8: 0 | K8: 0 | L8: 0
A9: 30 | B9: 117.14 | C9: 24.6 | D9: 141.74 | F9: 331.15 | H9: 30 | I9: 0 | J9: 0 | K9: 0 | L9: 0
A10: 40 | B10: 161.47 | C10: 33.91 | D10: 195.38 | F10: 495.266 | H10: 40 | I10: 0 | J10: 0 | K10: 0 | L10: 0
A11: 50 | B11: 205.81 | C11: 43.22 | D11: 249.03 | F11: =+D11+D23 -> 1043.729 | H11: 50 | I11: 0 | J11: 0 | K11: 0 | L11: 0
A13: FIANZAS
A14: EMASESA | H14: PLAN CINCO
A15: Calibre | D15: Total | H15: Calibre | K15: Total | L15: Diferencia
A16: 13 | D16: 70.291 | H16: 13 | K16: 3.01 | L16: =+D16-K16 -> 67.281
A17: Comunidad | D17: 70.291 | H17: Comunidad | K17: 3.01 | L17: =+D17-K17 -> 67.281
A18: 15 | D18: 70.291 | H18: 15 | K18: 3.01 | L18: =+D18-K18 -> 67.281
A19: 20 | D19: 91.946 | H19: 20 | K19: 3.01 | L19: =+D19-K19 -> 88.936
A20: 25 | D20: 153.121 | H20: 25
A21: 30 | D21: 189.41 | H21: 30
A22: 40 | D22: 299.886 | H22: 40
A23: 50 | D23: 794.699 | H23: 50
A25: PARÁMETROS A DE ACOMETIDAS
A26: EMASESA | H26: PLAN CINCO
A27: Calibre | B27: Importe | C27: IVA | D27: Total | H27: Calibre | I27: Importe | J27: IVA | K27: Total
A28: 20 | B28: 442.54 | C28: =ROUND(+B28*21%,2) -> 92.93 | D28: =SUM(B28:C28) -> 535.47 | E28: 1 | H28: 20 | I28: 0 | J28: 0 | K28: 0
A29: 25 | B29: 553.17 | C29: =ROUND(+B29*21%,2) -> 116.17 | D29: =SUM(B29:C29) -> 669.34 | E29: 2 | H29: 25 | I29: 0 | J29: 0 | K29: 0
A30: 30 | B30: 663.8 | C30: 139.4 | D30: 803.2 | E30: 3 | H30: 30 | I30: 0 | J30: 0 | K30: 0
A31: 40 | B31: 885.07 | C31: =ROUND(+B31*21%,2) -> 185.86 | D31: 1070.93 | E31: 4 | H31: 40 | I31: 0 | J31: 0 | K31: 0
A32: 50 | B32: 1106.34 | C32: 232.33 | D32: 1338.67 | E32: 5 | H32: 50 | I32: 0 | J32: 0 | K32: 0
A33: 65 | B33: 1438.24 | C33: 302.03 | D33: 1740.27 | E33: 6 | H33: 65 | I33: 0 | J33: 0 | K33: 0
A34: 80 | B34: 1770.14 | C34: 371.73 | D34: 2141.87 | E34: 7 | H34: 80 | I34: 0 | J34: 0 | K34: 0
